fUSD/lending_fUSD_20251024
["ID","MTS","AMOUNT","RATE_DAILY","PERIOD"]
[392243075,1761276644101,-500.0,0.00041095,30]
[392243076,1761276644113,-500.0,0.00041095,30]
[392243077,1761276644122,-500.0,0.00041095,30]
[392243078,1761276644131,-500.0,0.00041095,30]
[392243079,1761276644140,-500.0,0.00041095,30]
[392243080,1761276644149,-500.0,0.00041095,30]
[392243081,1761276644158,-500.0,0.00041095,30]
[392243082,1761276644168,-500.0,0.00041095,30]
[392243083,1761276644177,-500.0,0.00041095,30]
[392243084,1761276644189,-500.0,0.00041095,30]
[392243085,1761276644198,-500.0,0.00041095,30]
[392243086,1761276644207,-500.0,0.00041095,30]
[392243087,1761276644217,-500.0,0.00041095,30]
[392243088,1761276644227,-421.61939841,0.00041095,30]
[392243089,1761276644235,-500.0,0.00041095,30]
[392243090,1761276644245,-738.78,0.00041095,30]
[392243091,1761276644254,-500.0,0.00041095,30]
[392243092,1761276644263,-500.0,0.00041095,30]
[392243093,1761276644272,-500.0,0.00041095,30]
[392243094,1761276644281,-525.1,0.00041095,30]
[392243095,1761276644290,-608.95,0.00041095,30]
[392243096,1761276644299,-500.0,0.00041095,30]
[392243097,1761276644308,-500.0,0.00041095,30]
[392243098,1761276644317,-500.0,0.00041095,30]
[392243099,1761276644327,-500.0,0.00041095,30]
[392243100,1761276644336,-500.0,0.00041095,30]
[392243101,1761276644346,-500.0,0.00041095,30]
[392243102,1761276644358,-500.0,0.00041095,30]
[392243103,1761276644369,-500.0,0.00041095,30]
[392243104,1761276644379,-500.0,0.00041095,30]
[392243105,1761276644389,-575.75,0.00041095,30]
[392243106,1761276644399,-500.0,0.00041095,30]
[392243107,1761276644409,-500.0,0.00041095,30]
[392243108,1761276644419,-1053.78,0.00041095,30]
[392243109,1761276644428,-513.84,0.00041095,30]
[392243110,1761276644440,-500.0,0.00041095,30]
[392243111,1761276644450,-500.0,0.00041095,30]
[392243112,1761276644459,-500.0,0.00041095,30]
[392243113,1761276644469,-500.0,0.00041095,30]
[392243114,1761276644479,-500.0,0.00041095,30]
[392243115,1761276644488,-500.0,0.00041095,30]
[392243116,1761276644497,-500.0,0.00041095,30]
[392243117,1761276644508,-500.0,0.00041095,30]
[392243118,1761276644517,-500.0,0.00041095,30]
[392243119,1761276644526,-847.38,0.00041095,30]
[392243120,1761276644535,-500.0,0.00041095,30]
[392243121,1761276644544,-808.39,0.00041095,30]
[392243122,1761276644553,-500.0,0.00041095,30]
[392243123,1761276644562,-549.37,0.00041095,30]
[392243124,1761276644572,-154.309446,0.00041095,30]
[392243125,1761276644581,-578.8,0.00041095,30]
[392243126,1761276644591,-158.371621,0.00041095,30]
[392243127,1761276644601,-500.0,0.00041095,30]
[392243128,1761276644610,-157.837817,0.00041095,30]
[392243129,1761276644619,-156.40798,0.00041095,30]
[392243130,1761276644630,-500.0,0.00041095,30]
[392243131,1761276644640,-500.0,0.00041095,30]
[392243132,1761276644651,-340.460656,0.00041095,30]
[392243133,1761276644662,-865.1,0.00041095,30]
[392243134,1761276644671,-500.0,0.00041095,30]
[392243135,1761276644681,-617.67,0.00041095,30]
[392243136,1761276644690,-500.0,0.00041095,30]
[392243137,1761276644699,-500.0,0.00041095,30]
[392243138,1761276644708,-500.0,0.00041095,30]
[392243139,1761276644717,-500.0,0.00041095,30]
[392243140,1761276644726,-658.11,0.00041095,30]
[392243141,1761276644736,-500.0,0.00041095,30]
[392243142,1761276644744,-500.0,0.00041095,30]
[392243143,1761276644754,-735.14,0.00041095,30]
[392243144,1761276644763,-500.0,0.00041095,30]
[392243145,1761276644772,-500.0,0.00041095,30]
[392243146,1761276644780,-500.0,0.00041095,30]
[392243147,1761276644789,-1000.0,0.00041095,120]
[392243148,1761276644799,-781.22,0.00041095,30]
[392243149,1761276644808,-500.0,0.00041095,30]
[392243150,1761276644817,-500.0,0.00041095,30]
[392243151,1761276644827,-500.0,0.00041095,30]
[392243152,1761276644836,-500.0,0.00041095,30]
[392243153,1761276644844,-500.0,0.00041095,30]
[392243154,1761276644855,-539.59,0.00041095,30]
[392243155,1761276644864,-733.91,0.00041095,30]
[392243156,1761276644873,-500.0,0.00041095,30]
[392243157,1761276644882,-500.0,0.00041095,30]
[392243158,1761276644892,-500.0,0.00041095,30]
[392243159,1761276644901,-500.0,0.00041095,30]
[392243160,1761276644910,-500.0,0.00041095,30]
[392243161,1761276644920,-808.43,0.00041095,30]
[392243162,1761276644931,-500.0,0.00041095,30]
[392243163,1761276644941,-500.0,0.00041095,30]
[392243164,1761276644951,-500.0,0.00041095,30]
[392243165,1761276644961,-704.43,0.00041095,30]
[392243166,1761276644971,-500.0,0.00041095,30]
[392243167,1761276644982,-533.23,0.00041095,30]
[392243168,1761276644992,-840.45,0.00041095,30]
[392243169,1761276645001,-500.0,0.00041095,30]
[392243170,1761276645011,-500.0,0.00041095,30]
[392243171,1761276645021,-500.0,0.00041095,30]
[392243172,1761276645031,-597.88,0.00041095,30]
[392243173,1761276645042,-500.0,0.00041095,30]
[392243174,1761276645053,-500.0,0.00041095,30]
[392243175,1761276645063,-500.0,0.00041095,30]
[392243176,1761276645072,-566.49,0.00041095,30]
[392243177,1761276645082,-500.0,0.00041095,30]
[392243178,1761276645091,-500.0,0.00041095,30]
[392243179,1761276645101,-500.0,0.00041095,30]
[392243180,1761276645112,-500.0,0.00041095,30]
[392243181,1761276645123,-500.0,0.00041095,30]
[392243182,1761276645134,-500.0,0.00041095,30]
[392243183,1761276645144,-500.0,0.00041095,30]
[392243184,1761276645156,-500.0,0.00041095,30]
[392243185,1761276645166,-500.0,0.00041095,30]
[392243186,1761276645175,-500.0,0.00041095,30]
[392243187,1761276645187,-830.72,0.00041095,30]
[392243188,1761276645198,-500.0,0.00041095,30]
[392243189,1761276645207,-500.0,0.00041095,30]
[392243190,1761276645217,-500.0,0.00041095,30]
[392243191,1761276645228,-500.0,0.00041095,30]
[392243192,1761276645239,-500.0,0.00041095,30]
[392243193,1761276645249,-749.93,0.00041095,30]
[392243194,1761276645258,-666.64,0.00041095,30]
[392243195,1761276645269,-500.0,0.00041095,30]
[392243196,1761276645278,-500.0,0.00041095,30]
[392243197,1761276645289,-500.0,0.00041095,30]
[392243198,1761276645299,-500.0,0.00041095,30]
[392243199,1761276645309,-500.0,0.00041095,30]
[392243200,1761276645321,-500.0,0.00041095,30]
[392243201,1761276645332,-500.0,0.00041095,120]
[392243202,1761276645344,-500.0,0.00041095,30]
[392243203,1761276645353,-500.0,0.00041095,30]
[392243204,1761276645365,-500.0,0.00041095,30]
[392243205,1761276645376,-500.0,0.00041095,30]
[392243206,1761276645386,-500.0,0.00041095,30]
[392243207,1761276645395,-500.0,0.00041095,30]
[392243208,1761276645406,-500.0,0.00041095,30]
[392243209,1761276645416,-500.0,0.00041095,30]
[392243210,1761276645427,-500.0,0.00041095,30]
[392243211,1761276645438,-788.87,0.00041095,30]
[392243212,1761276645447,-500.0,0.00041095,30]
[392243213,1761276645457,-686.26,0.00041095,30]
[392243214,1761276645466,-693.47,0.00041095,30]
[392243215,1761276645476,-500.0,0.00041095,30]
[392243216,1761276645487,-513.66,0.00041095,30]
[392243217,1761276645498,-500.0,0.00041095,30]
[392243218,1761276645507,-500.0,0.00041095,30]
[392243219,1761276645517,-500.0,0.00041095,30]
[392243220,1761276645527,-500.0,0.00041095,30]
[392243221,1761276645537,-560.3,0.00041095,30]
[392243222,1761276645548,-608.92,0.00041095,30]
[392243223,1761276645558,-500.0,0.00041095,30]
[392243224,1761276645567,-500.0,0.00041095,30]
[392243225,1761276645577,-795.51,0.00041095,30]
[392243226,1761276645586,-500.0,0.00041095,30]
[392243227,1761276645596,-500.0,0.00041095,30]
[392243228,1761276645605,-1206.81,0.00041095,30]
[392243229,1761276645615,-500.0,0.00041095,30]
[392243230,1761276645624,-500.0,0.00041095,30]
[392243231,1761276645635,-500.0,0.00041095,30]
[392243232,1761276645644,-500.0,0.00041095,30]
[392243233,1761276645655,-1125.76,0.00041095,30]
[392243234,1761276645664,-500.0,0.00041095,30]
[392243235,1761276645674,-738.1,0.00041095,30]
[392243236,1761276645683,-500.0,0.00041095,30]
[392243237,1761276645692,-500.0,0.00041095,30]
[392243238,1761276645701,-500.0,0.00041095,30]
[392243239,1761276645710,-967.88,0.00041095,30]
[392243240,1761276645720,-500.0,0.00041095,30]
[392243241,1761276645729,-500.0,0.00041095,30]
[392243242,1761276645739,-584.05064742,0.00041095,30]
[392243243,1761276645748,-500.0,0.00041095,30]
[392243244,1761276645757,-500.0,0.00041095,30]
[392243245,1761276645768,-885.41,0.00041095,30]
[392243246,1761276645777,-619.12768676,0.00041095,30]
[392243247,1761276645787,-500.0,0.00041095,30]
[392243248,1761276645796,-634.75,0.00041095,30]
[392243249,1761276645805,-500.0,0.00041095,30]
[392243250,1761276645815,-500.0,0.00041095,30]
[392243251,1761276645824,-500.0,0.00041095,30]
[392243252,1761276645833,-529.46,0.00041095,30]
[392243253,1761276645842,-500.0,0.00041095,30]
[392243254,1761276645851,-796.37,0.00041095,30]
[392243255,1761276645861,-621.28,0.00041095,30]
[392243256,1761276645870,-500.0,0.00041095,30]
[392243257,1761276645879,-500.0,0.00041095,30]
[392243259,1761276645888,-880.49,0.00041095,30]
[392243260,1761276645898,-587.34560914,0.00041095,30]
[392243261,1761276645908,-926.44,0.00041095,30]
[392243262,1761276645917,-500.0,0.00041095,30]
[392243263,1761276645927,-500.0,0.00041095,30]
[392243264,1761276645936,-500.0,0.00041095,30]
[392243265,1761276645946,-500.0,0.00041095,30]
[392243266,1761276645955,-500.0,0.00041095,2]
[392243267,1761276645965,-500.0,0.00041095,30]
[392243268,1761276645974,-500.0,0.00041095,30]
[392243269,1761276645983,-500.0,0.00041095,30]
[392243270,1761276645993,-580.82,0.00041095,30]
[392243271,1761276646002,-591.81,0.00041095,30]
[392243272,1761276646012,-513.39,0.00041095,30]
[392243273,1761276646022,-736.93,0.00041095,30]
[392243274,1761276646033,-565.79,0.00041095,30]
[392243275,1761276646043,-500.0,0.00041095,30]
[392243276,1761276646053,-500.0,0.00041095,30]
[392243277,1761276646065,-500.0,0.00041095,30]
[392243278,1761276646075,-500.0,0.00041095,30]
[392243279,1761276646084,-767.1,0.00041095,30]
[392243280,1761276646094,-856.96,0.00041095,30]
[392243281,1761276646107,-870.03,0.00041095,30]
[392243282,1761276646117,-809.41,0.00041095,30]
[392243283,1761276646127,-500.0,0.00041095,30]
[392243284,1761276646136,-500.0,0.00041095,30]
[392243285,1761276646147,-639.3905967,0.00041095,30]
[392243286,1761276646157,-500.0,0.00041095,30]
[392243287,1761276646167,-500.0,0.00041095,30]
[392243288,1761276646176,-500.0,0.00041095,30]
[392243289,1761276646188,-500.0,0.00041095,30]
[392243290,1761276646198,-500.0,0.00041095,30]
[392243291,1761276646208,-500.0,0.00041095,30]
[392243292,1761276646218,-500.0,0.00041095,30]
[392243293,1761276646228,-500.0,0.00041095,30]
[392243294,1761276646237,-722.58,0.00041095,30]
[392243295,1761276646247,-500.0,0.00041095,30]
[392243296,1761276646256,-500.0,0.00041095,30]
[392243297,1761276646266,-500.0,0.00041095,30]
[392243298,1761276646275,-581.66,0.00041095,30]
[392243299,1761276646286,-500.0,0.00041095,30]
[392243300,1761276646296,-1000.0,0.00041095,30]
[392243301,1761276646305,-224.25096484,0.00041095,30]
[392243302,1761276646314,-500.0,0.00041095,30]
[392243303,1761276646323,-500.0,0.00041095,30]
[392243304,1761276646332,-999.11,0.00041095,30]
[392243305,1761276646341,-500.0,0.00041095,30]
[392243306,1761276646350,-500.0,0.00041095,30]
[392243307,1761276646359,-500.0,0.00041095,30]
[392243308,1761276646368,-500.0,0.00041095,30]
[392243309,1761276646377,-500.0,0.00041095,30]
[392243310,1761276646386,-500.0,0.00041095,30]
[392243311,1761276646396,-500.0,0.00041095,30]
[392243312,1761276646405,-535.52,0.00041095,30]
[392243313,1761276646414,-557.78,0.00041095,30]
[392243314,1761276646423,-2927.58,0.00041095,30]
[392243315,1761276646432,-500.0,0.00041095,30]
[392243316,1761276646441,-500.0,0.00041095,30]
[392243317,1761276646450,-500.0,0.00041095,30]
[392243318,1761276646459,-500.0,0.00041095,30]
[392243319,1761276646469,-500.0,0.00041095,30]
[392243320,1761276646478,-500.0,0.00041095,30]
[392243321,1761276646487,-500.0,0.00041095,30]
[392243322,1761276646495,-500.0,0.00041095,30]
[392243323,1761276646505,-519.26,0.00041095,30]
[392243324,1761276646514,-673.74,0.00041095,30]
[392243325,1761276646523,-783.9,0.00041095,30]
[392243326,1761276646533,-500.0,0.00041095,30]
[392243327,1761276646542,-500.0,0.00041095,30]
[392243328,1761276646551,-500.0,0.00041095,30]
[392243329,1761276646560,-500.0,0.00041095,30]
[392243330,1761276646569,-816.99,0.00041095,30]
[392243331,1761276646578,-150.08591281,0.00041095,30]
[392243332,1761276646587,-500.0,0.00041095,30]
[392243333,1761276646598,-773.52,0.00041095,30]
[392243334,1761276646607,-500.0,0.00041095,30]
[392243335,1761276646617,-500.0,0.00041095,30]
[392243337,1761276646626,-812.07,0.00041095,30]
[392243338,1761276646635,-500.0,0.00041095,30]
[392243339,1761276646644,-500.0,0.00041095,30]
[392243340,1761276646654,-500.0,0.00041095,30]
[392243341,1761276646663,-500.0,0.00041095,30]
[392243342,1761276646672,-500.0,0.00041095,30]
[392243343,1761276646681,-1089.69,0.00041095,30]
[392243344,1761276646690,-500.0,0.00041095,30]
[392243345,1761276646699,-500.0,0.00041095,30]
[392243346,1761276646708,-500.0,0.00041095,30]
[392243347,1761276646718,-1063.04,0.00041095,30]
[392243348,1761276646727,-500.0,0.00041095,30]
[392243349,1761276646736,-500.0,0.00041095,30]
[392243350,1761276646745,-500.0,0.00041095,30]
[392243351,1761276646755,-500.0,0.00041095,30]
[392243352,1761276646764,-500.0,0.00041095,30]
[392243353,1761276646773,-623.88,0.00041095,30]
[392243354,1761276646782,-500.0,0.00041095,30]
[392243355,1761276646791,-500.0,0.00041095,30]
[392243356,1761276646800,-500.0,0.00041095,30]
[392243357,1761276646810,-500.0,0.00041095,30]
[392243358,1761276646819,-195.68389512,0.00041095,30]
[392243359,1761276646828,-500.0,0.00041095,30]
[392243360,1761276646837,-500.0,0.00041095,30]
[392243361,1761276646847,-500.0,0.00041095,30]
[392243362,1761276646856,-536.84,0.00041095,30]
[392243363,1761276646865,-500.0,0.00041095,30]
[392243364,1761276646874,-656.17,0.00041095,30]
[392243365,1761276646884,-500.0,0.00041095,30]
[392243366,1761276646893,-500.0,0.00041095,30]
[392243367,1761276646903,-500.0,0.00041095,30]
[392243368,1761276646912,-500.0,0.00041095,30]
[392243369,1761276646925,-500.0,0.00041095,30]
[392243370,1761276646934,-668.42,0.00041095,30]
[392243371,1761276646943,-500.0,0.00041095,30]
[392243372,1761276646952,-661.4,0.00041095,30]
[392243373,1761276646961,-500.0,0.00041095,30]
[392243374,1761276646970,-500.0,0.00041095,30]
[392243375,1761276646979,-500.0,0.00041095,30]
[392243376,1761276646989,-708.15,0.00041095,30]
[392243377,1761276646998,-802.48,0.00041095,30]
[392243378,1761276647008,-500.0,0.00041095,30]
[392243379,1761276647018,-500.0,0.00041095,30]
[392243380,1761276647028,-516.08,0.00041095,30]
[392243381,1761276647040,-500.0,0.00041095,30]
[392243382,1761276647049,-500.0,0.00041095,30]
[392243383,1761276647058,-500.0,0.00041095,30]
[392243384,1761276647067,-823.14,0.00041095,30]
[392243385,1761276647076,-500.0,0.00041095,30]
[392243386,1761276647085,-500.0,0.00041095,30]
[392243387,1761276647095,-742.53,0.00041095,30]
[392243388,1761276647105,-500.0,0.00041095,30]
[392243389,1761276647119,-500.0,0.00041095,30]
[392243390,1761276647127,-500.0,0.00041095,30]
[392243391,1761276647136,-849.18,0.00041095,30]
[392243392,1761276647145,-500.0,0.00041095,30]
[392243393,1761276647155,-500.0,0.00041095,30]
[392243394,1761276647165,-500.0,0.00041095,30]
[392243395,1761276647174,-500.0,0.00041095,30]
[392243396,1761276647184,-500.0,0.00041095,30]
[392243397,1761276647193,-500.0,0.00041095,30]
[392243398,1761276647204,-500.0,0.00041095,30]
[392243399,1761276647213,-500.0,0.00041095,30]
[392243400,1761276647223,-500.0,0.00041095,30]
[392243401,1761276647233,-566.09,0.00041095,30]
[392243402,1761276647242,-500.0,0.00041095,30]
[392243403,1761276647251,-500.0,0.00041095,30]
[392243404,1761276647260,-500.0,0.00041095,30]
[392243405,1761276647269,-502.00416584,0.00041095,30]
[392243406,1761276647278,-500.0,0.00041095,30]
[392243407,1761276647288,-863.39,0.00041095,30]
[392243408,1761276647297,-681.53,0.00041095,30]
[392243409,1761276647306,-154.309449,0.00041095,30]
[392243410,1761276647315,-158.37162,0.00041095,30]
[392243411,1761276647324,-500.0,0.00041095,30]
[392243412,1761276647333,-157.837816,0.00041095,30]
[392243413,1761276647342,-156.407994,0.00041095,30]
[392243414,1761276647352,-500.0,0.00041095,30]
[392243416,1761276647361,-500.0,0.00041095,30]
[392243417,1761276647371,-500.0,0.00041095,30]
[392243419,1761276647380,-792.61,0.00041095,30]
[392243421,1761276647389,-500.0,0.00041095,30]
[392243423,1761276647398,-500.0,0.00041095,30]
[392243425,1761276647408,-500.0,0.00041095,30]
[392243427,1761276647417,-500.0,0.00041095,30]
[392243429,1761276647427,-172.731463,0.00041095,30]
[392243431,1761276647436,-500.0,0.00041095,30]
[392243433,1761276647445,-808.63,0.00041095,30]
[392243435,1761276647454,-618.95,0.00041095,30]
[392243437,1761276647463,-500.0,0.00041095,30]
[392243439,1761276647472,-500.0,0.00041095,30]
[392243441,1761276647482,-500.0,0.00041095,30]
[392243443,1761276647491,-500.0,0.00041095,30]
[392243444,1761276647501,-500.0,0.00041095,30]
[392243445,1761276647511,-500.0,0.00041095,30]
[392243446,1761276647631,-500.0,0.00041095,30]
[392243447,1761276647649,-500.0,0.00041095,30]
[392243448,1761276647658,-500.0,0.00041095,30]
[392243449,1761276647668,-500.0,0.00041095,30]
[392243450,1761276647677,-500.0,0.00041095,30]
[392243451,1761276647687,-759.92,0.00041095,30]
[392243452,1761276647696,-500.0,0.00041095,30]
[392243453,1761276647705,-500.0,0.00041095,30]
[392243454,1761276647714,-1172.09,0.00041095,30]
[392243455,1761276647724,-500.0,0.00041095,30]
[392243456,1761276647733,-500.0,0.00041095,30]
[392243457,1761276647742,-500.0,0.00041095,30]
[392243458,1761276647752,-500.0,0.00041095,30]
[392243459,1761276647762,-557.35,0.00041095,30]
[392243460,1761276647773,-647.94,0.00041095,30]
[392243461,1761276647783,-840.94,0.00041095,30]
[392243462,1761276647793,-500.0,0.00041095,30]
[392243463,1761276647804,-500.0,0.00041095,30]
[392243464,1761276647813,-500.0,0.00041095,30]
[392243465,1761276647824,-500.0,0.00041095,30]
[392243466,1761276647833,-760.03,0.00041095,30]
[392243467,1761276647843,-500.0,0.00041095,30]
[392243468,1761276647852,-500.0,0.00041095,30]
[392243469,1761276647863,-500.0,0.00041095,30]
[392243470,1761276647874,-573.08,0.00041095,30]
[392243471,1761276647884,-500.0,0.00041095,30]
[392243472,1761276647893,-500.0,0.00041095,30]
[392243473,1761276647903,-500.0,0.00041095,30]
[392243474,1761276647912,-786.3,0.00041095,30]
[392243475,1761276647922,-500.0,0.00041095,30]
[392243476,1761276647931,-500.0,0.00041095,30]
[392243477,1761276647941,-500.0,0.00041095,30]
[392243478,1761276647950,-500.0,0.00041095,30]
[392243479,1761276647960,-500.0,0.00041095,30]
[392243480,1761276647970,-500.0,0.00041095,30]
[392243481,1761276647979,-500.0,0.00041095,30]
[392243482,1761276647988,-970.16,0.00041095,30]
[392243483,1761276647999,-500.0,0.00041095,30]
[392243484,1761276648009,-500.0,0.00041095,30]
[392243485,1761276648018,-500.0,0.00041095,30]
[392243486,1761276648028,-500.0,0.00041095,30]
[392243487,1761276648039,-500.0,0.00041095,30]
[392243488,1761276648049,-500.0,0.00041095,30]
[392243489,1761276648059,-544.22,0.00041095,30]
[392243490,1761276648068,-679.01,0.00041095,30]
[392243491,1761276648077,-500.0,0.00041095,30]
[392243492,1761276648086,-500.0,0.00041095,30]
[392243493,1761276648096,-500.0,0.00041095,30]
[392243494,1761276648105,-500.0,0.00041095,30]
[392243495,1761276648117,-500.0,0.00041095,30]
[392243496,1761276648127,-796.73,0.00041095,30]
[392243497,1761276648138,-500.0,0.00041095,30]
[392243498,1761276648147,-500.0,0.00041095,30]
[392243499,1761276648156,-500.0,0.00041095,30]
[392243500,1761276648166,-500.0,0.00041095,30]
[392243501,1761276648176,-500.0,0.00041095,30]
[392243502,1761276648186,-536.82652898,0.00041095,30]
[392243503,1761276648197,-500.0,0.00041095,30]
[392243504,1761276648207,-500.0,0.00041095,30]
[392243505,1761276648217,-506.50250995,0.00041095,30]
[392243506,1761276648227,-539.42,0.00041095,30]
[392243507,1761276648236,-512.09,0.00041095,30]
[392243508,1761276648249,-500.0,0.00041095,30]
[392243509,1761276648266,-500.0,0.00041095,30]
[392243510,1761276648283,-1087.85,0.00041095,30]
[392243511,1761276648292,-500.0,0.00041095,30]
[392243512,1761276648301,-500.0,0.00041095,30]
[392243513,1761276648310,-500.0,0.00041095,30]
[392243514,1761276648320,-154.309446,0.00041095,30]
[392243515,1761276648330,-500.0,0.00041095,30]
[392243516,1761276648341,-500.0,0.00041095,30]
[392243517,1761276648350,-500.0,0.00041095,30]
[392243518,1761276648360,-500.0,0.00041095,30]
[392243519,1761276648369,-500.0,0.00041095,30]
[392243520,1761276648378,-602.69,0.00041095,30]
[392243521,1761276648387,-500.0,0.00041095,30]
[392243522,1761276648399,-635.17,0.00041095,30]
[392243523,1761276648408,-156.40798,0.00041095,30]
[392243524,1761276648420,-500.0,0.00041095,30]
[392243525,1761276648429,-500.0,0.00041095,30]
[392243526,1761276648439,-500.0,0.00041095,30]
[392243527,1761276648448,-500.0,0.00041095,30]
[392243528,1761276648457,-500.0,0.00041095,30]
[392243529,1761276648466,-500.0,0.00041095,30]
[392243530,1761276648475,-500.0,0.00041095,30]
[392243531,1761276648484,-153.44457522,0.00041095,30]
[392243532,1761276648493,-211.320409,0.00041095,30]
[392243533,1761276648502,-500.0,0.00041095,30]
[392243534,1761276648511,-292.14463658,0.00041095,30]
[392243535,1761276648520,-500.0,0.00041095,30]
[392243536,1761276648529,-805.42,0.00041095,30]
[392243537,1761276648540,-823.67,0.00041095,30]
[392243538,1761276648548,-654.87,0.00041095,30]
[392243539,1761276648557,-500.0,0.00041095,30]
[392243540,1761276648566,-500.0,0.00041095,30]
[392243541,1761276648575,-500.0,0.00041095,30]
[392243542,1761276648584,-508.76,0.00041095,30]
[392243543,1761276648593,-500.0,0.00041095,30]
[392243544,1761276648603,-500.0,0.00041095,30]
[392243545,1761276648613,-500.0,0.00041095,30]
[392243546,1761276648624,-119760.70048574,0.00041095,30]
[392243547,1761276648634,-500.0,0.00041096,120]
[392243548,1761276648645,-9903.27,0.00041096,2]
[392243549,1761276648655,-200.0,0.00041096,20]
[392243550,1761276648665,-865.0,0.00041096,120]
[392243551,1761276648676,-1471.40588731,0.00041101,2]
[392243552,1761276648686,-696.48,0.00041143,30]
[392243553,1761276648697,-475.59,0.00041143,30]
[392243554,1761276648707,-696.48,0.00041143,30]
[392243555,1761276648717,-475.59,0.00041143,30]
[392243556,1761276648726,-475.59,0.00041143,30]
[392243557,1761276648737,-696.48,0.00041143,30]
[392243558,1761276648747,-475.59,0.00041143,30]
[392243559,1761276648757,-696.48,0.00041143,30]
[392243560,1761276648767,-696.48,0.00041143,30]
[392243561,1761276648778,-475.59,0.00041143,30]
[392243562,1761276648788,-1011.51,0.00041143,30]
[392243563,1761276648799,-475.59,0.00041143,30]
[392243564,1761276648808,-475.59,0.00041143,30]
[392243565,1761276648819,-730.39,0.00041143,30]
[392243566,1761276648828,-865.0,0.00041151,120]
[392243567,1761276648838,-865.0,0.00041206,120]
[392243568,1761276648848,-503.0,0.0004122,120]
[392243569,1761276648858,-1425.0,0.00041235,2]
[392243570,1761276648868,-1425.0,0.00041245,2]
[392243571,1761276648878,-865.0,0.0004126,120]
[392243572,1761276648890,-3502.3041,0.00041268,2]
[392243573,1761276648900,-5627.4615592,0.00041268,2]
[392243574,1761276648910,-865.0,0.00041315,120]
[392243575,1761276648920,-676.85550377,0.00041346,2]
[392243576,1761276648930,-202.47139032,0.00041359,7]
[392243577,1761276648940,-151.0,0.00041366,14]
[392243578,1761276648949,-864.42,0.00041367,2]
[392243579,1761276648960,-500.0,0.00041368,30]
[392243580,1761276648970,-500.0,0.00041368,30]
[392243581,1761276648979,-759.05,0.00041368,30]
[392243582,1761276648989,-702.45,0.00041368,30]
[392243583,1761276648998,-500.0,0.00041368,30]
[392243584,1761276649008,-503.56,0.00041368,30]
[392243585,1761276649017,-500.0,0.00041368,30]
[392243586,1761276649029,-500.0,0.00041368,30]
[392243587,1761276649038,-500.0,0.00041368,30]
[392243588,1761276649048,-500.0,0.00041368,30]
[392243589,1761276649058,-619.76,0.00041368,30]
[392243590,1761276649068,-500.0,0.00041368,30]